bitfinex-derivatives/quotes_ETHF0:USTF0_20210407
["timestamp","ask_amount","ask_price","bid_price","bid_amount"]
[1617764049295,59.43775,2108.6,2108.5,8.63695]
[1617764054500,61.38845,2108.6,2108.5,8.63695]
[1617764064305,61.38845,2108.6,2108.5,5.73]
[1617764064705,61.38845,2108.6,2107.7,2.90695]
[1617764064908,61.38845,2108.6,2107.8,5.71]
[1617764065106,61.38845,2108.6,2108.5,5.77]
[1617764065307,61.38845,2108.6,2107.7,2.90695]
[1617764065506,4.85765,2108.6,2107.9,5.74]
[1617764065707,4.85765,2108.6,2108.5,5.78]
[1617764065907,4.85765,2108.6,2107.8,5.72]
[1617764066108,4.85765,2108.6,2108.0,5.97]
[1617764066308,73.0641,2108.1,2107.7,2.90695]
[1617764066508,76.0233,2108.1,2107.8,5.69]
[1617764068509,2.90695,2107.9,2107.8,5.69]
[1617764081129,2.90695,2107.9,2106.7,5.72]
[1617764081346,2.90695,2107.9,2106.5,5.82]
[1617764081532,2.90695,2107.9,2107.8,5.74]
[1617764081732,2.90695,2107.9,2106.5,2.0]
[1617764081933,2.90695,2107.9,2106.6,5.57]
[1617764082134,2.90695,2107.9,2107.8,5.66]
[1617764082334,2.90695,2107.9,2106.5,2.0]
[1617764082535,2.90695,2107.9,2106.7,5.96]
[1617764082734,2.0,2108.6,2107.8,5.72]
[1617764082938,2.0,2108.6,2107.1,1.42]
[1617764083335,2.0,2108.6,2107.9,5.69]
[1617764083537,2.0,2108.6,2107.1,5.79]
[1617764084738,4.96425,2107.2,2107.1,5.79]
[1617764103459,2.90695,2107.2,2107.1,5.79]
[1617764104861,74.61085,2107.2,2107.1,5.79]
[1617764112575,71.7039,2107.2,2107.1,5.79]
[1617764113878,2.90695,2107.6,2107.1,5.79]
[1617764115185,2.90695,2107.6,2107.5,2.90695]
[1617764115683,2.90695,2107.6,2107.5,8.59695]
[1617764122893,2.90695,2107.6,2107.5,5.69]
[1617764123294,2.90695,2107.6,2107.1,2.90695]
[1617764123493,2.90695,2107.6,2107.5,5.75]
[1617764123893,2.90695,2107.6,2107.2,5.89]
[1617764124095,2.90695,2107.6,2107.1,2.90695]
[1617764124293,2.90695,2107.6,2107.5,5.89]
[1617764124492,2.90695,2107.6,2107.2,5.93]
[1617764124694,2.90695,2107.6,2107.1,2.90695]
[1617764124892,2.90695,2107.6,2107.5,5.71]
[1617764125093,2.90695,2107.6,2107.2,5.96]
[1617764125293,2.90695,2107.3,2107.2,5.96]
[1617764125493,5.04535,2107.3,2107.1,2.90695]
[1617764125893,5.04535,2107.3,2107.2,5.75]
[1617764128497,2.90695,2107.3,2107.2,5.75]
[1617764131201,2.90695,2107.3,2105.9,5.71]
[1617764131402,2.5529,2107.3,2106.8,2.90695]
[1617764131602,2.5529,2107.3,2107.2,5.93]
[1617764132003,2.5529,2107.3,2106.9,5.75]
[1617764132205,2.5529,2107.3,2107.2,5.81]
[1617764132505,2.5529,2107.3,2106.9,5.88]
[1617764132905,2.5529,2107.3,2107.2,5.85]
[1617764133105,2.5529,2107.3,2106.9,5.87]
[1617764133505,2.90695,2107.0,2106.8,2.90695]
[1617764133905,2.90695,2107.0,2106.9,5.91]
[1617764144521,2.90695,2107.0,2106.9,8.0415]
[1617764145521,2.90695,2107.6,2106.9,8.0415]
[1617764147526,2.90695,2107.6,2107.5,2.90695]
[1617764147729,2.90695,2107.6,2107.5,5.60135]
[1617764147925,2.90695,2107.6,2107.5,11.50135]
[1617764154833,55.9647,2108.9,2107.5,11.50135]
[1617764155534,55.9647,2108.9,2108.2,2.90695]
[1617764155933,53.9647,2108.9,2108.3,5.78]
[1617764157534,2.90695,2108.4,2108.3,5.78]
[1617764158935,2.0,2109.7,2108.3,5.78]
[1617764159337,73.71,2109.4,2108.3,5.78]
[1617764159537,73.71,2109.4,2108.7,2.90695]
[1617764159739,73.71,2109.4,2108.7,5.22905]
[1617764159941,73.71,2109.4,2108.8,5.72]
[1617764161540,2.90695,2108.9,2108.8,5.72]
[1617764166952,2.90695,2108.9,2107.7,5.88]
[1617764167152,2.90695,2108.9,2107.7,7.88]
[1617764167352,2.90695,2108.9,2108.8,5.7]
[1617764167753,2.90695,2108.9,2108.2,2.90695]
[1617764167953,2.90695,2108.9,2108.8,5.96]
[1617764168352,2.90695,2108.9,2108.2,2.90695]
[1617764168753,2.90695,2108.9,2108.3,5.87]
[1617764169654,2.90695,2108.4,2108.3,5.87]
[1617764177365,2.90695,2108.4,2107.3,5.94]
[1617764177565,2.90695,2108.4,2108.3,5.86]
[1617764177966,2.90695,2108.4,2107.7,2.90695]
[1617764178167,2.90695,2108.4,2107.8,5.74]
[1617764178766,65.04315,2108.4,2107.8,5.74]
[1617764179770,62.1362,2108.4,2108.1,2.90695]
[1617764179971,62.1362,2108.4,2107.8,5.74]
[1617764180171,62.1362,2108.4,2107.3,2.9878]
[1617764180172,64.3635,2108.4,2108.2,5.79]
[1617764180372,64.3635,2108.4,2106.8,2.0]
[1617764180572,64.3635,2108.4,2107.9,5.84]
[1617764180772,64.3635,2108.4,2108.3,5.8]
[1617764180973,64.3635,2108.4,2106.9,0.52]
[1617764181173,64.3635,2108.4,2108.0,5.55]
[1617764181374,64.3635,2108.4,2107.6,5.93]
[1617764181576,64.3635,2108.4,2106.9,5.82]
[1617764181776,64.3635,2108.4,2107.7,2.90695]
[1617764182176,64.3635,2108.4,2107.8,5.93]
[1617764183676,2.90695,2107.9,2107.8,5.93]
[1617764184478,4.77375,2107.9,2107.8,5.93]
[1617764186682,4.77375,2107.9,2106.9,5.82]
[1617764186881,4.77375,2107.9,2107.8,5.77]
[1617764187281,4.77375,2107.9,2106.9,5.83]
[1617764187482,4.77375,2107.9,2107.8,5.96]
[1617764187883,4.77375,2107.9,2106.9,2.90695]
[1617764188083,4.77375,2107.9,2107.0,5.94]
[1617764189684,2.90695,2107.1,2107.0,5.94]
[1617764189884,5.91705,2107.1,2107.0,5.94]
[1617764190785,3.0101,2107.1,2107.0,5.94]
[1617764191186,70.8039,2107.8,2107.0,5.94]
[1617764191385,70.8039,2107.8,2106.4,3.2]
[1617764191587,70.8039,2107.8,2107.1,5.38]
[1617764191787,70.8039,2107.8,2107.3,2.90695]
[1617764192187,70.8039,2107.8,2107.4,5.92]
[1617764193889,2.90695,2107.5,2107.4,5.92]
[1617764208507,2.90695,2107.5,2106.1,5.97]
[1617764208707,2.90695,2107.5,2106.1,7.97]
[1617764208907,2.90695,2107.5,2107.4,5.95]
[1617764209307,2.90695,2107.5,2106.2,5.89]
[1617764209707,61.41215,2107.5,2106.2,5.89]
[1617764209908,58.5052,2107.5,2106.7,2.90695]
[1617764210309,58.5052,2107.5,2106.8,5.72]
[1617764211910,2.90695,2106.9,2106.8,5.72]
[1617764213112,4.2273,2108.4,2106.8,5.72]
[1617764213312,75.3481,2108.1,2106.1,5.78]
[1617764213512,75.3481,2108.1,2106.1,7.78]
[1617764213712,75.3481,2108.1,2106.9,5.86]
[1617764213911,75.3481,2108.1,2107.2,2.90695]
[1617764214313,75.3481,2108.1,2107.3,5.97]
[1617764215914,2.90695,2107.4,2107.3,5.97]
[1617764216115,4.79305,2107.4,2107.3,5.97]
[1617764217518,2.90695,2107.4,2107.3,5.97]
[1617764217717,2.90695,2107.4,2106.1,5.86]
[1617764217918,2.0,2108.2,2106.9,2.90695]
[1617764218117,2.0,2108.2,2107.3,5.76]
[1617764218519,2.0,2108.2,2107.0,5.96]
[1617764218722,2.0,2108.2,2107.4,5.94]
[1617764219020,2.0,2108.2,2107.0,5.9]
[1617764219321,2.0,2108.2,2107.5,5.76]
[1617764219620,2.0,2108.2,2107.0,5.82]
[1617764219924,2.0,2108.2,2106.9,2.90695]
[1617764219925,2.90695,2107.1,2106.9,2.90695]
[1617764220322,2.90695,2107.1,2107.0,5.77]
[1617764242854,2.90695,2107.1,2107.0,7.9184]
[1617764243455,73.2908,2108.7,2107.0,7.9184]
[1617764243860,73.2908,2108.7,2107.0,9.9184]
[1617764244060,73.2908,2108.7,2107.9,2.90695]
[1617764244262,73.2908,2108.7,2107.9,5.36515]
[1617764244461,73.2908,2108.7,2108.0,5.86]
[1617764246058,76.19775,2108.7,2108.5,2.90695]
[1617764246456,76.19775,2108.7,2108.6,5.71]
[1617764246657,2.90695,2108.7,2108.6,5.71]
[1617764248060,2.90695,2108.7,2107.9,2.90695]
[1617764248260,5.70175,2108.7,2107.9,2.90695]
[1617764248460,5.70175,2108.7,2108.6,5.66]
[1617764248860,5.70175,2108.7,2107.9,2.90695]
[1617764249061,5.70175,2108.7,2108.6,5.78]
[1617764249460,5.70175,2108.7,2107.2,5.77]
[1617764249660,5.70175,2108.7,2108.6,5.82]
[1617764250063,5.70175,2108.7,2107.5,2.90695]
[1617764250261,5.70175,2108.7,2108.6,5.69]
[1617764250460,7.70175,2108.7,2108.6,5.69]
[1617764250661,5.70175,2108.7,2107.6,3.5]
[1617764250861,5.70175,2108.7,2108.6,5.77]
[1617764251061,5.70175,2108.7,2107.6,5.81]
[1617764251263,7.70175,2108.7,2107.6,5.81]
[1617764251462,7.70175,2108.7,2106.7,5.81]
[1617764251662,7.70175,2108.7,2107.7,5.85]
[1617764252062,2.90695,2107.8,2106.9,2.90695]
[1617764252463,5.83385,2107.8,2106.9,2.90695]
[1617764252664,5.83385,2107.8,2106.9,8.84695]
[1617764254165,2.90695,2107.3,2107.2,2.90695]
[1617764254764,2.90695,2107.3,2107.2,8.86695]
[1617764255064,5.08285,2107.3,2107.2,8.86695]
[1617764261272,2.90695,2107.3,2107.2,8.86695]
[1617764261973,2.90695,2107.3,2107.2,9.80645]
[1617764262173,2.90695,2107.3,2107.2,8.86695]
[1617764266378,5.91985,2107.3,2107.2,8.86695]
[1617764266780,5.91985,2107.3,2107.2,5.96]
[1617764266982,5.91985,2107.3,2106.5,5.75]
[1617764267381,5.91985,2107.3,2107.2,5.7]
[1617764267583,5.91985,2107.3,2106.2,7.02721859]
[1617764267783,5.91985,2107.3,2106.6,5.93]
[1617764267984,5.91985,2107.3,2107.2,5.83]
[1617764268183,5.91985,2107.3,2106.9,2.90695]
[1617764268384,60.5495,2107.2,2106.9,2.90695]
[1617764268584,60.5495,2107.2,2107.0,5.77]
[1617764294231,2.90695,2107.3,2107.0,5.77]
[1617764294631,13.5525,2108.6,2107.2,2.90695]
[1617764294833,60.3089,2108.4,2107.2,2.90695]
[1617764295033,60.3089,2108.4,2107.3,5.75]
[1617764295434,60.3089,2108.4,2107.3,6.6983]
[1617764295632,60.3089,2108.4,2107.3,5.75]
[1617764296534,60.3089,2108.4,2107.6,2.90695]
[1617764296934,60.3089,2108.4,2107.7,5.74]
[1617764298540,2.90695,2107.8,2107.7,5.74]
[1617764302642,60.3089,2108.4,2107.7,5.74]
[1617764303044,60.3089,2108.4,2107.7,8.2677]
[1617764304545,63.21585,2108.4,2108.3,2.90695]
[1617764304945,63.21585,2108.4,2108.3,8.71695]
[1617764305145,2.90695,2108.4,2108.3,8.71695]
[1617764308645,2.90695,2108.4,2108.3,5.81]
[1617764309045,2.90695,2108.4,2107.3,5.89]
[1617764309245,5.28485,2108.4,2108.3,5.41]
[1617764309647,60.3313,2107.8,2107.4,5.89]
[1617764309847,62.6123,2107.8,2106.9,5.91]
[1617764310049,62.6123,2107.8,2106.7,2.0]
[1617764310246,62.6123,2107.8,2107.5,5.88]
[1617764310447,62.6123,2107.8,2107.0,5.76]
[1617764310647,62.6123,2107.8,2107.4,2.90695]
[1617764310847,62.6123,2107.8,2107.6,5.69]
[1617764311055,62.6123,2107.8,2107.4,2.90695]
[1617764311249,62.6123,2107.8,2107.5,3.38]
[1617764311451,62.6123,2107.8,2107.7,5.57]
[1617764311749,62.6123,2107.8,2107.5,5.96]
[1617764312049,62.6123,2107.8,2107.7,5.79]
[1617764312450,62.6123,2107.8,2107.5,5.92]
[1617764312655,2.90695,2107.6,2107.4,2.90695]
[1617764312957,2.90695,2107.6,2107.5,5.85]
[1617764324666,2.90695,2107.6,2106.3,5.01472578]
[1617764324667,2.90695,2107.6,2106.6,2.90695]
[1617764324866,5.44285,2107.6,2106.6,2.90695]
[1617764325066,92.15495,2107.6,2107.5,5.73]
[1617764325266,92.15495,2107.6,2106.7,3.73]
[1617764325668,92.15495,2107.6,2107.5,5.98]
[1617764325867,92.15495,2107.6,2106.7,5.8]
[1617764326268,92.15495,2107.6,2107.5,5.91]
[1617764326467,92.15495,2107.6,2106.6,2.90695]
[1617764326468,92.15495,2107.6,2106.7,5.93]
[1617764326669,2.90695,2106.8,2106.7,5.93]
[1617764326869,2.90695,2106.8,2106.6,2.90695]
[1617764327069,5.60075,2106.8,2106.7,5.81]
[1617764328571,64.16965,2106.8,2106.7,5.81]
[1617764353293,61.2627,2106.8,2106.7,5.81]
[1617764353495,58.5689,2106.8,2106.7,7.6562]
[1617764354094,2.0,2108.6,2106.7,7.6562]
[1617764354895,78.2193,2108.0,2107.6,2.90695]
[1617764355297,78.2193,2108.0,2107.6,5.50705]
[1617764355495,78.2193,2108.0,2107.7,5.94]
[1617764357096,2.90695,2107.8,2107.7,5.94]
[1617764360301,2.90695,2107.8,2106.8,5.85]
[1617764360501,2.90695,2107.8,2106.8,7.85]
[1617764360702,2.90695,2107.8,2107.7,5.79]
[1617764360902,2.90695,2107.8,2106.8,7.82]
[1617764361101,2.90695,2107.8,2107.7,2.90695]
[1617764361503,2.90695,2107.8,2107.7,8.86695]
[1617764376630,78.2193,2108.0,2107.7,8.86695]
[1617764377831,78.2193,2108.0,2107.7,10.86695]
[1617764378734,2.90695,2108.4,2107.7,10.86695]
[1617764379332,2.90695,2108.4,2108.3,2.90695]
[1617764379532,2.90695,2108.4,2108.3,5.80615]
[1617764379733,2.90695,2108.4,2108.3,11.52615]
[1617764380331,67.6435,2108.8,2108.3,11.52615]
[1617764381436,67.6435,2108.8,2108.7,2.90695]
[1617764381635,67.6435,2108.8,2108.7,8.62695]
[1617764383335,70.55045,2108.8,2108.7,8.62695]
[1617764386841,72.99705,2108.8,2108.7,5.72]
[1617764387042,72.99705,2108.8,2107.7,5.85]
[1617764387242,5.35355,2108.8,2107.7,5.85]
[1617764387445,2.4466,2108.8,2108.7,5.91]
[1617764387645,2.4466,2108.8,2108.2,2.90695]
[1617764387844,2.4466,2108.8,2108.3,5.74]
[1617764388945,2.0,2109.5,2108.3,5.74]
[1617764389346,2.90695,2108.4,2108.3,5.74]
[1617764391347,67.50965,2108.4,2108.3,5.74]
[1617764393151,69.78175,2108.4,2108.3,5.74]
[1617764393550,69.78175,2108.4,2107.9,2.90695]
[1617764393951,69.78175,2108.4,2108.3,5.84]
[1617764394152,69.78175,2108.4,2108.0,0.56]
[1617764394353,69.78175,2108.4,2107.9,2.90695]
[1617764394552,69.78175,2108.4,2108.3,5.95]
[1617764394752,69.78175,2108.4,2108.0,5.81]
[1617764395153,69.78175,2108.4,2108.3,5.91]
[1617764395451,69.78175,2108.4,2108.0,5.81]
[1617764395753,69.78175,2108.4,2108.3,5.74]
[1617764396257,69.78175,2108.4,2108.0,5.78]
[1617764397456,2.90695,2108.1,2108.0,5.78]
[1617764397659,2.90695,2108.1,2107.3,2.90695]
[1617764397856,2.90695,2108.1,2107.4,5.79]
[1617764398057,2.90695,2108.1,2108.0,5.88]
[1617764398257,2.90695,2108.1,2107.3,2.90695]
[1617764398457,2.90695,2108.1,2107.5,5.82]
[1617764398657,2.90695,2108.1,2108.0,5.76]
[1617764398857,2.90695,2108.1,2107.4,5.97]
[1617764399057,2.90695,2108.1,2107.6,5.74]
[1617764399257,2.90695,2108.1,2108.0,5.69]
[1617764399458,2.90695,2108.1,2107.4,5.84]
[1617764399757,2.90695,2108.1,2108.0,5.78]
[1617764400158,2.90695,2108.1,2107.4,5.81]
[1617764400357,2.90695,2108.1,2108.0,5.73]
[1617764400758,2.90695,2108.1,2107.4,7.73]
[1617764400958,2.90695,2108.1,2108.0,5.79]
[1617764401359,2.90695,2108.1,2107.5,2.8441]
[1617764401560,67.50965,2108.4,2108.0,8.78695]
[1617764401759,67.50965,2108.4,2108.0,11.64225]
[1617764401961,64.6027,2108.4,2108.0,5.76225]
[1617764402160,13.0453,2110.2,2108.1,5.89]
[1617764402764,13.0453,2110.2,2108.1,7.89]
[1617764402963,15.0453,2110.2,2108.1,7.89]
[1617764403163,58.3634,2110.2,2108.1,7.89]
[1617764403562,58.3634,2110.2,2109.1,5.14095]
[1617764403762,58.3634,2110.2,2109.2,5.76]
[1617764405566,58.3634,2110.2,2109.6,2.90695]
[1617764405868,58.3634,2110.2,2109.7,5.95]
[1617764407575,2.90695,2109.8,2109.2,5.88]
[1617764407977,2.90695,2109.8,2109.7,5.97]
[1617764408175,2.90695,2109.8,2109.0,2.90695]
[1617764408377,2.90695,2109.8,2109.3,5.71]
[1617764408576,2.90695,2109.8,2109.7,5.83]
[1617764408776,2.90695,2109.8,2109.1,3.55]
[1617764408978,2.90695,2109.8,2109.4,5.15]
[1617764409182,2.90695,2109.8,2109.7,5.82]
[1617764409583,2.90695,2109.8,2109.5,5.61]
[1617764409781,2.90695,2109.8,2109.7,5.92]
[1617764410182,2.90695,2109.8,2109.6,5.94]
[1617764410383,2.90695,2109.8,2109.7,5.97]
[1617764410783,2.90695,2109.8,2109.1,5.91]
[1617764410985,2.90695,2109.8,2109.7,5.82]
[1617764411386,2.90695,2109.8,2109.1,5.79]
[1617764411586,2.90695,2109.2,2109.0,2.90695]
[1617764411987,2.90695,2109.2,2109.1,5.89]
[1617764413389,2.90695,2109.2,2109.1,8.6705]
[1617764414891,70.93165,2109.2,2109.1,8.6705]
[1617764415890,70.93165,2109.2,2109.1,5.89]
[1617764417795,70.93165,2109.2,2109.1,7.7319]
[1617764417993,2.90695,2109.2,2109.1,7.7319]
[1617764421202,2.90695,2109.2,2109.1,5.89]
[1617764422504,2.90695,2109.2,2109.1,8.8298]
[1617764427612,2.90695,2109.2,2109.1,5.89]
[1617764446823,2.90695,2109.2,2107.7,5.85]
[1617764447023,2.90695,2109.2,2107.8,2.0]
[1617764447425,2.90695,2109.2,2107.7,5.85]
[1617764447426,2.90695,2109.2,2108.0,2.0]
[1617764447824,78.3439,2109.3,2108.7,2.90695]
[1617764448224,78.3439,2109.3,2108.8,5.9]
[1617764449828,2.90695,2108.9,2108.8,5.9]
[1617764450029,2.90695,2108.9,2108.3,5.72]
[1617764450228,2.90695,2108.9,2108.1,2.90695]
[1617764450628,2.90695,2108.9,2108.4,5.89]
[1617764450829,2.90695,2108.9,2108.2,4.7345]
[1617764451029,2.90695,2108.9,2108.2,2.0545]
[1617764451229,2.90695,2108.9,2108.3,5.86]
[1617764451831,2.90695,2108.4,2108.2,5.9]
[1617764452331,2.90695,2108.4,2108.1,2.90695]
[1617764452532,2.90695,2108.4,2108.3,5.83]
[1617764452735,2.90695,2108.4,2108.3,2.9791]
[1617764453129,2.90695,2108.4,2108.3,8.9191]
[1617764455134,78.3439,2109.3,2108.3,8.9191]
[1617764455933,78.3439,2109.3,2108.4,2.90695]
[1617764456433,78.3439,2109.3,2108.5,5.69]
[1617764457935,2.90695,2108.6,2108.5,5.69]
[1617764464742,2.90695,2108.6,2108.3,5.7]
[1617764464939,2.90695,2108.6,2108.5,5.93]
[1617764465442,2.90695,2108.6,2108.4,5.93]
[1617764465640,2.90695,2108.6,2108.5,5.53]
[1617764465842,2.90695,2108.6,2107.1,2.0]
[1617764466043,2.0878,2108.7,2107.7,5.9]
[1617764466243,2.0878,2108.7,2108.5,5.85]
[1617764466445,2.0878,2108.7,2106.9,6.99901517]
[1617764466644,2.0878,2108.7,2107.8,5.77]
[1617764466844,70.5216,2108.3,2107.5,5.77]
[1617764467044,70.5216,2108.3,2107.3,2.87]
[1617764467245,70.5216,2108.3,2107.9,5.85]
[1617764467446,70.5216,2108.3,2107.4,5.85]
[1617764467849,70.5216,2108.3,2108.0,5.79]
[1617764468048,2.90695,2108.1,2107.4,5.93]
[1617764468447,2.90695,2108.1,2108.0,5.8]
[1617764468645,2.90695,2108.1,2107.3,2.90695]
[1617764468646,2.90695,2108.1,2107.5,5.88]
[1617764469046,2.90695,2108.1,2108.0,5.85]
[1617764469447,2.90695,2108.1,2107.6,5.86]
[1617764469646,2.90695,2108.1,2107.4,5.81]
[1617764469847,2.90695,2108.1,2108.0,5.92]
[1617764470047,2.90695,2108.1,2107.7,5.74]
[1617764470247,2.90695,2108.1,2107.4,5.84]
[1617764470448,2.90695,2108.1,2108.0,5.8]
[1617764470649,2.90695,2108.1,2107.8,5.94]
[1617764470848,2.90695,2108.1,2107.4,5.71]
[1617764471048,2.90695,2108.1,2108.0,5.81]
[1617764471249,2.90695,2108.1,2107.9,5.95]
[1617764471648,2.90695,2108.1,2108.0,5.9]
[1617764472048,2.90695,2108.1,2107.4,5.74]
[1617764472249,2.90695,2108.1,2108.0,5.82]
[1617764472449,2.90695,2108.1,2107.3,2.90695]
[1617764472649,2.90695,2108.1,2107.4,5.73]
[1617764473849,75.9842,2107.6,2107.4,5.73]
[1617764474049,2.90695,2107.5,2107.4,5.73]
[1617764474451,5.21465,2107.5,2107.4,5.73]
[1617764474851,5.21465,2107.5,2106.5,5.78]
[1617764475053,5.21465,2107.5,2107.4,5.96]
[1617764475452,5.21465,2107.5,2106.6,5.9]
[1617764475652,5.21465,2107.5,2106.0,0.38]
[1617764475653,5.21465,2107.5,2107.4,0.16]
[1617764476052,5.21465,2107.5,2106.7,5.89]
[1617764476253,5.21465,2107.5,2107.4,5.79]
[1617764476653,5.21465,2107.5,2106.8,5.92]
[1617764476854,5.21465,2107.5,2107.4,5.73]
[1617764477253,5.21465,2107.5,2106.9,5.72]
[1617764477653,5.21465,2107.5,2107.4,5.95]
[1617764477854,5.21465,2107.5,2107.0,5.74]
[1617764478057,2.90695,2107.1,2107.0,5.74]
[1617764478255,2.90695,2107.1,2106.6,5.72]
[1617764478456,2.90695,2107.1,2107.0,5.94]
[1617764478855,2.90695,2107.1,2106.6,5.95]
[1617764479055,2.90695,2107.1,2107.0,5.87]
[1617764479456,2.90695,2107.1,2106.6,5.82]
[1617764479657,2.90695,2107.1,2107.0,5.88]
[1617764480058,5.57385,2107.1,2106.6,5.97]
[1617764480255,5.57385,2107.1,2107.0,5.87]
[1617764480659,5.57385,2107.1,2106.6,5.83]
[1617764481063,5.57385,2107.1,2107.0,5.86]
[1617764481261,5.57385,2107.1,2106.6,5.9]
[1617764481561,5.57385,2107.1,2107.0,5.87]
[1617764481862,5.57385,2107.1,2106.6,5.74]
[1617764482062,2.90695,2106.7,2106.6,5.74]
[1617764482262,2.90695,2106.7,2106.1,8.83695]
[1617764482462,2.90695,2106.7,2106.2,0.01]
[1617764482662,2.90695,2106.7,2106.6,5.88]
[1617764482863,2.90695,2106.7,2106.1,2.90695]
[1617764483063,2.90695,2106.7,2106.2,5.8]
[1617764483263,2.90695,2106.7,2106.6,5.97]
[1617764483466,2.90695,2106.7,2106.1,2.90695]
[1617764483665,2.90695,2106.7,2106.2,5.81]
[1617764484069,2.90695,2106.3,2106.2,5.81]
[1617764494684,82.39835,2106.3,2106.2,5.81]
[1617764495286,82.39835,2106.3,2104.9,5.85]
[1617764495486,82.39835,2106.3,2104.9,7.85]
[1617764495686,82.39835,2106.3,2106.2,5.87]
[1617764495889,82.39835,2106.3,2105.0,5.74]
[1617764496089,2.90695,2105.9,2105.8,2.90695]
[1617764496689,2.90695,2105.9,2105.8,6.11695]
[1617764509512,2.89346815,2105.9,2105.8,6.11695]
[1617764516019,78.8784,2106.1,2105.8,6.11695]
[1617764516419,2.90695,2106.0,2105.8,6.11695]
[1617764527132,5.28125,2106.0,2105.8,6.11695]
[1617764527336,5.28125,2106.0,2105.8,3.21]
[1617764527733,2.0,2105.9,2104.9,5.79]
[1617764527933,2.0,2105.9,2104.2,5.87]
[1617764528135,2.0,2105.9,2104.1,2.0]
[1617764528335,2.0,2105.9,2105.0,5.9]
[1617764528533,2.0,2105.9,2105.1,2.90695]
[1617764528733,2.0,2105.9,2103.6,5.78]
[1617764528935,2.0,2105.9,2105.1,5.9]
[1617764529133,2.0,2105.9,2103.5,2.0]
[1617764529333,2.0,2105.9,2103.7,5.84]
[1617764529537,2.0,2105.9,2105.2,5.88]
[1617764529736,2.0,2105.9,2103.7,2.0]
[1617764529933,60.826,2104.3,2103.8,5.96]
[1617764530133,60.826,2104.3,2103.7,2.0]
[1617764530533,60.826,2104.3,2104.2,2.90695]
[1617764530933,60.826,2104.3,2104.2,8.73695]
[1617764542249,63.278,2104.3,2104.2,8.73695]
[1617764546050,63.278,2104.3,2104.2,5.83]
[1617764546351,2.452,2104.3,2103.3,5.91]
[1617764546751,2.452,2104.3,2103.6,2.90695]
[1617764546952,2.0,2104.6,2103.6,2.90695]
[1617764547153,2.0,2104.6,2103.7,5.83]
[1617764548755,2.90695,2103.8,2103.7,5.83]
[1617764555266,2.90695,2103.8,2103.3,5.85]
[1617764555667,2.90695,2103.8,2103.7,5.95]
[1617764555868,2.90695,2103.8,2103.2,15.0]
[1617764555869,2.90695,2103.8,2103.3,5.91]
[1617764556168,2.90695,2103.8,2103.7,5.95]
[1617764556571,2.90695,2103.8,2103.3,5.8]
[1617764556769,2.0,2104.5,2103.3,2.90695]
[1617764556770,2.90695,2103.4,2103.3,2.90695]
[1617764557370,2.90695,2103.4,2103.3,8.61695]
[1617764560076,2.90695,2103.4,2103.3,16.61695]
[1617764562077,2.90695,2103.4,2103.3,18.61695]
[1617764562676,2.90695,2103.4,2103.3,19.61695]
[1617764563078,56.3595,2103.5,2103.3,19.61695]
[1617764563977,56.3595,2103.5,2103.3,23.61695]
[1617764564578,56.3595,2103.5,2103.4,2.0]
[1617764564978,56.3595,2103.5,2103.4,7.81]
[1617764565779,56.3595,2103.5,2103.4,5.81]
[1617764571585,55.6523,2103.5,2103.4,5.81]
[1617764575288,55.6523,2103.5,2103.4,8.71695]
[1617764576289,55.6523,2103.5,2103.4,10.71695]
[1617764577192,2.0,2105.4,2103.4,10.71695]
[1617764577390,2.0,2105.7,2104.2,2.90695]
[1617764577590,2.0,2105.7,2104.2,5.84485]
[1617764577791,58.0273,2104.8,2104.3,5.81]
[1617764579295,2.90695,2104.4,2104.3,5.81]
[1617764581099,58.0273,2104.8,2104.3,5.81]
[1617764581300,58.0273,2104.8,2104.7,2.90695]
[1617764581700,58.0273,2104.8,2104.7,8.64695]
[1617764581901,58.0273,2104.8,2104.7,9.58405]
[1617764582501,58.0273,2104.8,2104.7,8.64695]
[1617764583402,58.0273,2104.8,2104.7,9.59395]
[1617764584103,2.90695,2105.4,2104.7,9.59395]
[1617764584302,2.90695,2105.4,2104.7,11.59395]
[1617764584707,60.2033,2105.9,2104.7,11.59395]
[1617764585305,60.2033,2105.9,2105.7,2.90695]
[1617764585505,60.2033,2105.9,2105.7,5.50895]
[1617764585707,60.2033,2105.9,2105.8,5.79]
[1617764587305,63.11025,2105.9,2105.8,5.79]
[1617764595421,2.90695,2105.9,2105.6,5.92]
[1617764595620,4.90695,2105.9,2105.6,5.92]
[1617764595820,4.90695,2105.9,2105.8,5.39]
[1617764596020,4.90695,2105.9,2105.7,5.75]